bitfinex-derivatives/quotes_BTCF0:USTF0_20250213
["timestamp","ask_amount","ask_price","bid_price","bid_amount"]
[1739405643468,0.233,97609.0,97608.0,0.45759]
[1739405645870,0.24346871,97609.0,97608.0,0.81839]
[1739405646679,0.233,97609.0,97608.0,0.81839]
[1739405648061,0.013,97609.0,97608.0,0.81839]
[1739405649469,0.0234039,97609.0,97608.0,0.81839]
[1739405650168,0.013,97609.0,97608.0,0.81839]
[1739405655278,0.013,97609.0,97608.0,0.45759]
[1739405665591,1e-08,97611.0,97608.0,0.2527]
[1739405665791,0.15291435,97619.0,97618.0,0.20487]
[1739405667596,0.17343681,97619.0,97618.0,0.20587]
[1739405668498,0.17743681,97619.0,97618.0,0.20587]
[1739405668679,0.21153681,97619.0,97618.0,0.20587]
[1739405669591,0.10860188,97619.0,97618.0,0.20587]
[1739405669892,0.14260188,97619.0,97618.0,0.20587]
[1739405685806,0.1833282,97624.0,97618.0,0.001]
[1739405686105,0.13,97624.0,97621.0,0.3608]
[1739405686304,0.20492,97624.0,97623.0,0.2048605]
[1739405686504,0.13,97624.0,97623.0,0.2048605]
[1739405686703,0.14015622,97624.0,97623.0,0.2048605]
[1739405687104,0.14115622,97624.0,97623.0,0.2048605]
[1739405687899,0.14115622,97624.0,97623.0,0.2058605]
[1739405688904,0.14015622,97624.0,97623.0,0.2068605]
[1739405694014,0.29332837,97624.0,97623.0,0.2068605]
[1739405695705,0.65412837,97624.0,97623.0,0.2068605]
[1739405696313,0.2048634,97622.0,97620.0,0.19535352]
[1739405696516,0.035,97621.0,97620.0,0.17069352]
[1739405696708,0.255,97621.0,97620.0,0.17069352]
[1739405696909,0.255,97621.0,97614.0,0.20503181]
[1739405697407,0.255,97621.0,97615.0,0.2048756]
[1739405697613,0.255,97621.0,97618.0,0.2048695]
[1739405698813,0.255,97621.0,97620.0,0.001]
[1739405699014,0.32988,97621.0,97620.0,0.001]
[1739405699514,0.32988,97621.0,97618.0,0.2048695]
[1739405699515,0.32988,97621.0,97618.0,0.2058695]
[1739405699709,0.32988,97621.0,97618.0,0.001]
[1739405699710,0.255,97621.0,97618.0,0.001]
[1739405699903,0.255,97621.0,97620.0,0.2048667]
[1739405700105,0.257,97621.0,97620.0,0.2048667]
[1739405700310,0.257,97621.0,97620.0,0.2058667]
[1739405702214,0.222,97621.0,97620.0,0.2058667]
[1739405705315,0.0489527,97621.0,97620.0,0.2058667]
[1739405706613,2e-08,97624.0,97623.0,0.2048604]
[1739405706815,0.22,97624.0,97622.0,0.2048625]
[1739405707015,0.22,97624.0,97623.0,0.3608]
[1739405707215,0.29484,97624.0,97623.0,0.3608]
[1739405708015,0.30498638,97624.0,97623.0,0.3618]
[1739405708321,0.23014638,97624.0,97623.0,0.3618]
[1739405708514,0.23114638,97624.0,97623.0,0.3628]
[1739405712219,0.65132001,97639.0,97623.0,0.3628]
[1739405712415,0.22015361,97633.0,97632.0,0.2048416]
[1739405712615,0.2304635,97633.0,97632.0,0.2048416]
[1739405712819,1e-08,97633.0,97632.0,0.5656416]
[1739405713326,0.18350704,97637.0,97636.0,0.2048332]
[1739405713715,0.00153665,97644.0,97643.0,0.2048185]
[1739405713917,0.25165577,97644.0,97643.0,0.2048185]
[1739405714209,0.24153665,97644.0,97643.0,0.2048185]
[1739405714716,0.11773615,97644.0,97643.0,0.37551202]
[1739405714918,0.60505409,97659.0,97643.0,0.37551202]
[1739405714919,0.24505409,97659.0,97658.0,0.204787]
[1739405715119,0.43453408,97659.0,97658.0,0.204787]
[1739405715821,0.44493987,97659.0,97658.0,0.204787]
[1739405716426,0.43453408,97659.0,97658.0,0.204787]
[1739405717119,0.19,97659.0,97658.0,0.205787]
[1739405717319,0.19,97659.0,97658.0,0.206787]
[1739405720723,0.19,97659.0,97658.0,0.37748052]
[1739405721324,0.19,97659.0,97658.0,0.37648052]
[1739405721526,0.19,97659.0,97658.0,0.37748052]
[1739405722026,0.19,97659.0,97658.0,0.37648052]
[1739405725430,0.01027995,97668.0,97667.0,0.2047682]
[1739405725630,0.07027995,97668.0,97667.0,0.2047682]
[1739405726033,0.07027995,97668.0,97667.0,0.38566198]
[1739405726429,0.07027995,97668.0,97667.0,0.37546172]
[1739405727627,0.06015361,97668.0,97667.0,0.37546172]
[1739405727825,0.06015361,97668.0,97667.0,0.37646172]
[1739405728026,0.06015361,97668.0,97667.0,0.38670542]
[1739405728630,0.00153605,97682.0,97681.0,0.2047389]
[1739405728830,0.19153605,97682.0,97681.0,0.2047389]
[1739405729836,0.19,97682.0,97681.0,0.2047389]
[1739405730134,0.19,97682.0,97681.0,0.2057389]
[1739405730730,0.19,97682.0,97681.0,0.2067389]
[1739405731427,0.20040553,97682.0,97681.0,0.2067389]
[1739405734034,0.19,97682.0,97681.0,0.2067389]
[1739405737335,0.19,97682.0,97681.0,0.2168911]
[1739405737935,0.00015361,97691.0,97681.0,0.0121522]
[1739405738127,0.23015361,97691.0,97690.0,0.20472]
[1739405739036,0.24029447,97691.0,97690.0,0.20472]
[1739405739741,0.24029447,97691.0,97690.0,0.20572]
[1739405740338,0.23015361,97691.0,97690.0,0.20572]
[1739405740541,0.23015361,97691.0,97690.0,0.20672]
[1739405744543,0.23015361,97691.0,97690.0,0.37741352]
[1739405756753,0.12080521,97691.0,97690.0,0.37741352]
[1739405756954,1e-08,97691.0,97690.0,0.37741352]
[1739405757147,0.3608,97697.0,97690.0,0.17269352]
[1739405757343,0.17,97697.0,97696.0,0.5655074]
[1739405757548,0.15253528,97704.0,97703.0,0.2046927]
[1739405757757,0.21253528,97704.0,97703.0,0.2046927]
[1739405758352,0.22544555,97704.0,97703.0,0.2046927]
[1739405759345,0.07291027,97704.0,97703.0,0.2046927]
[1739405759857,0.07291027,97704.0,97703.0,0.2056927]
[1739405760250,0.06,97704.0,97703.0,0.2056927]
[1739405760558,0.06,97704.0,97703.0,0.2066927]
[1739405761459,0.06,97704.0,97703.0,0.2066927]
[1739405763865,0.21303241,97704.0,97703.0,0.2066927]
[1739405766663,0.21303241,97704.0,97703.0,0.2056927]
[1739405766863,0.15303241,97704.0,97703.0,0.2056927]
[1739405767166,0.36303241,97704.0,97703.0,0.2056927]
[1739405767366,0.21,97704.0,97703.0,0.2056927]
[1739405770466,0.14,97704.0,97703.0,0.2056928]
[1739405771160,0.033,97709.0,97708.0,0.2046823]
[1739405771362,0.03,97709.0,97708.0,0.5654823]
[1739405772074,0.15318594,97713.0,97712.0,0.2046739]
[1739405772264,0.26318594,97713.0,97712.0,0.2046739]
[1739405773263,0.0655,97723.0,97722.0,0.204653]
[1739405773465,0.2155,97723.0,97722.0,0.204653]
[1739405774877,0.2155,97723.0,97722.0,0.205653]
[1739405775573,0.1825,97723.0,97722.0,0.206653]
[1739405775976,0.1825,97723.0,97722.0,0.205653]
[1739405776175,0.15,97723.0,97722.0,0.205653]
[1739405778578,0.15,97723.0,97722.0,0.204653]
[1739405780085,0.15,97723.0,97722.0,0.37534652]
[1739405781287,0.03330132,97732.0,97731.0,0.2046341]
[1739405781483,0.25330132,97732.0,97731.0,0.2046341]
[1739405781694,0.11633662,97732.0,97731.0,0.37532762]
[1739405781890,0.18269003,97747.0,97742.0,0.2046111]
[1739405782079,0.02375191,97747.0,97746.0,0.2046027]
[1739405782287,0.07375191,97747.0,97746.0,0.2046027]
[1739405782590,0.05,97747.0,97746.0,0.2046027]
[1739405783494,0.05,97747.0,97746.0,0.2056027]
[1739405783991,0.05,97747.0,97746.0,0.37629622]
[1739405784390,0.05,97747.0,97746.0,0.37729622]
[1739405784989,0.05,97747.0,97746.0,0.37629622]
[1739405785190,0.05,97747.0,97746.0,0.39005405]
[1739405792999,0.05,97747.0,97746.0,0.75085405]
[1739405794002,0.01282221,97756.0,97755.0,0.2045838]
[1739405794200,0.0349,97759.0,97754.0,0.3608]
[1739405794398,0.04802443,97759.0,97758.0,0.2045775]
[1739405795998,0.20609409,97767.0,97764.0,0.204565]
[1739405795999,0.00153479,97767.0,97764.0,0.204565]
[1739405796195,0.13562479,97765.0,97764.0,0.204565]
[1739405796395,0.123,97765.0,97764.0,0.204565]
[1739405797200,0.123,97765.0,97764.0,0.205565]
[1739405797602,0.13558101,97765.0,97764.0,0.206565]
[1739405801201,0.123,97765.0,97764.0,0.206565]
[1739405802307,0.09,97765.0,97764.0,0.206565]
[1739405805305,0.18330242,97790.0,97764.0,0.34019352]
[1739405805506,0.02120859,97788.0,97787.0,0.2045169]
[1739405805703,0.18330242,97790.0,97789.0,0.2045127]
[1739405806700,0.19330242,97790.0,97789.0,0.2045127]
[1739405807008,0.0335,97804.0,97799.0,0.2044918]
[1739405807205,0.28,97800.0,97799.0,0.5652918]
[1739405809310,0.28,97800.0,97799.0,0.5662918]
[1739405809905,0.28,97800.0,97799.0,0.5672918]
[1739405811917,0.28,97800.0,97799.0,0.3628]
[1739405812107,0.28,97800.0,97799.0,0.002]
[1739405814009,0.35432,97800.0,97799.0,0.002]
[1739405815421,0.71512,97800.0,97799.0,0.002]
[1739405816319,0.35432,97800.0,97799.0,0.002]
[1739405821309,0.38762,97800.0,97799.0,0.002]
[1739405821510,0.3133,97800.0,97799.0,0.002]
[1739405822325,0.1333,97800.0,97799.0,0.002]
[1739405835223,0.18303544,97800.0,97799.0,0.002]
[1739405836433,0.14973544,97800.0,97799.0,0.002]
[1739405839132,0.14973544,97800.0,97799.0,0.001]
[1739405839336,0.14973544,97800.0,97799.0,0.002]
[1739405841134,0.14973544,97800.0,97799.0,0.001]
[1739405841447,0.14973544,97800.0,97799.0,0.002]
[1739405842143,0.14973544,97800.0,97799.0,0.001]
[1739405842345,0.33331115,97800.0,97799.0,0.002]
[1739405843442,0.35331115,97800.0,97799.0,0.002]
[1739405843650,0.19308795,97800.0,97799.0,0.0775]
[1739405843947,0.19308795,97800.0,97799.0,0.1082]
[1739405844137,0.19308795,97800.0,97799.0,0.12124789]
[1739405847142,0.02,97800.0,97799.0,0.12124789]
[1739405848440,0.02,97800.0,97799.0,0.29194141]
[1739405850656,0.2044482,97820.0,97816.0,0.2044544]
[1739405850843,0.4444482,97820.0,97816.0,0.2044544]
[1739405851043,0.24,97820.0,97810.0,0.44073802]
[1739405851244,0.2044533,97818.0,97817.0,0.2044524]
[1739405851446,0.2044617,97814.0,97810.0,0.36164]
[1739405851748,0.4244617,97814.0,97812.0,0.2044638]
[1739405852452,0.4244617,97814.0,97810.0,0.3618]
[1739405852453,0.2044668,97811.0,97810.0,0.001]
[1739405852654,0.4044668,97811.0,97800.0,0.07909802]
[1739405852851,0.4044668,97811.0,97810.0,0.001]
[1739405854546,0.4044668,97811.0,97810.0,0.002]
[1739405854746,0.4044668,97811.0,97810.0,0.001]
[1739405855356,0.4044668,97811.0,97810.0,0.002]
[1739405859647,0.2,97811.0,97810.0,0.002]
[1739405859847,0.27416,97811.0,97810.0,0.002]
[1739405861358,0.32389095,97811.0,97810.0,0.002]
[1739405861548,0.24973095,97811.0,97810.0,0.002]
[1739405867453,0.04973095,97811.0,97810.0,0.002]
[1739405871862,0.04973095,97813.0,97810.0,0.002]
[1739405872063,0.04973095,97813.0,97811.0,0.2044669]
[1739405874764,0.04973095,97813.0,97811.0,0.2054669]
[1739405875068,0.04973095,97813.0,97811.0,0.2064669]
[1739405876661,0.3608,97812.0,97811.0,0.2064669]
[1739405878768,0.41053095,97812.0,97811.0,0.2064669]
[1739405880564,0.61499575,97812.0,97811.0,0.002]
[1739405881467,0.41053095,97812.0,97811.0,0.2064669]
[1739405884872,0.41053095,97812.0,97811.0,0.002]
[1739405885171,0.204493,97799.0,97795.0,0.0361]
[1739405885370,0.22,97799.0,97795.0,0.0361]
[1739405885574,0.22,97799.0,97796.0,0.2044976]
[1739405886565,0.22,97799.0,97795.0,0.0361]
[1739405886972,0.23282643,97799.0,97795.0,0.0361]
[1739405887172,0.23282643,97799.0,97795.0,0.001]
[1739405887373,0.3608,97796.0,97795.0,0.001]
[1739405887578,0.66488,97796.0,97795.0,0.001]
[1739405887776,0.8693782,97796.0,97795.0,0.001]
[1739405887977,0.7952982,97796.0,97795.0,0.001]
[1739405891085,0.5908,97796.0,97795.0,0.001]
[1739405891282,0.66484,97796.0,97795.0,0.001]
[1739405891583,0.66484,97796.0,97795.0,0.2055002]
[1739405891783,0.23,97796.0,97795.0,0.2055002]
[1739405892787,0.46382453,97796.0,97795.0,0.2055002]
[1739405896382,0.23,97796.0,97795.0,0.2055002]
[1739405896897,0.23,97796.0,97795.0,0.5663002]
[1739405897591,0.23,97796.0,97795.0,0.001]
[1739405897779,0.30404,97796.0,97795.0,0.001]
[1739405898984,0.30404,97796.0,97775.0,0.18399198]
[1739405899286,0.3608,97782.0,97775.0,0.18399198]
[1739405899498,0.5708,97782.0,97775.0,0.18399198]
[1739405899798,0.21,97782.0,97780.0,0.2045311]
[1739405902484,0.22265706,97782.0,97780.0,0.2045311]
[1739405908896,0.22265706,97782.0,97773.0,0.2045452]
[1739405909084,0.2045465,97773.0,97771.0,0.00015336]
[1739405909282,0.23,97773.0,97771.0,0.00015336]
[1739405910289,0.23,97773.0,97771.0,0.20470296]
[1739405910688,0.23,97773.0,97771.0,0.20670296]
[1739405911396,0.2045483,97772.0,97771.0,0.00215336]
[1739405911596,0.4345483,97772.0,97771.0,0.00215336]
[1739405911994,0.4345483,97772.0,97771.0,0.00315336]
[1739405920092,0.7953483,97772.0,97771.0,0.00315336]
[1739405923998,0.5908,97772.0,97771.0,0.20770376]
[1739405924908,0.5908,97772.0,97771.0,0.20670376]
[1739405925209,0.5908,97772.0,97771.0,0.20570376]
[1739405927199,0.64054959,97772.0,97771.0,0.20570376]
[1739405927807,0.27974959,97772.0,97771.0,0.20570376]
[1739405928308,0.27974959,97772.0,97771.0,0.27920376]
[1739405928808,0.27974959,97772.0,97771.0,0.27820376]
[1739405929809,0.27974959,97772.0,97771.0,0.27920376]
[1739405930906,0.23,97772.0,97771.0,0.27920376]
[1739405931608,0.23,97772.0,97760.0,0.15819604]
[1739405931609,0.5908,97772.0,97752.0,0.3608]
[1739405931829,0.3608,97762.0,97755.0,0.2045834]
[1739405931995,0.0363,97761.0,97755.0,0.2045834]
[1739405932203,0.2463,97761.0,97755.0,0.2045834]
[1739405932403,0.2463,97761.0,97746.0,0.0779]
[1739405932404,0.2463,97761.0,97759.0,0.2045755]
[1739405932815,0.21,97761.0,97759.0,0.2045755]
[1739405933614,0.22217124,97761.0,97759.0,0.2045755]
[1739405934212,0.22217124,97761.0,97753.0,0.18699198]
[1739405934707,0.22217124,97761.0,97753.0,0.18399198]
[1739405934708,0.3608,97754.0,97753.0,0.18399198]
[1739405934909,0.3608,97754.0,97750.0,0.00015336]
[1739405934910,0.5708,97754.0,97750.0,0.00015336]
[1739405935809,0.5728,97754.0,97750.0,0.00015336]
[1739405936206,0.5708,97754.0,97750.0,0.00015336]
[1739405936415,0.5748,97754.0,97750.0,0.00015336]
[1739405936806,0.5748,97754.0,97752.0,0.20459]
[1739405937706,0.214,97754.0,97752.0,0.20459]
[1739405937908,0.216,97754.0,97752.0,0.20459]
[1739405938916,0.04975579,97753.0,97752.0,0.20459]
[1739405939112,0.25975579,97753.0,97752.0,0.20459]
[1739405939813,0.25975579,97753.0,97750.0,0.00015336]
[1739405941110,0.26475579,97753.0,97750.0,0.00015336]
[1739405941417,0.26275579,97753.0,97750.0,0.00015336]
[1739405941620,0.26375579,97753.0,97750.0,0.00015336]
[1739405941916,0.26275579,97753.0,97750.0,0.00015336]
[1739405942419,0.3608,97751.0,97750.0,0.00015336]
[1739405942715,0.5608,97751.0,97750.0,0.00015336]
[1739405944118,0.5648,97751.0,97750.0,0.00015336]
[1739405946522,0.61456046,97751.0,97750.0,0.00015336]
[1739405953122,0.25376046,97751.0,97750.0,0.00015336]
[1739405953514,0.204,97751.0,97750.0,0.00015336]
[1739405953720,0.204,97751.0,97750.0,0.04075336]
[1739405956833,0.18409358,97759.0,97758.0,0.2045778]
[1739405957042,0.26409358,97759.0,97758.0,0.2045778]
[1739405957537,0.08,97759.0,97758.0,0.2045778]
[1739405958034,0.088,97759.0,97758.0,0.2055778]
[1739405958241,0.008,97759.0,97758.0,0.38812525]
[1739405959538,0.0076932,97759.0,97758.0,0.38812525]
[1739405960736,0.0076932,97759.0,97758.0,0.38712525]
[1739405960946,0.003,97759.0,97758.0,0.38712525]
[1739405961141,0.01230397,97770.0,97758.0,0.18254745]
[1739405961441,0.01230397,97770.0,97761.0,0.2045715]
[1739405962342,0.00115345,97762.0,97761.0,0.2045715]
[1739405962944,0.06115345,97762.0,97761.0,0.2045715]
[1739405963248,0.00115345,97762.0,97761.0,0.2045715]
[1739405963843,0.00215345,97762.0,97761.0,0.2045715]
[1739405964254,0.05215345,97762.0,97761.0,0.2045715]
[1739405964542,0.05415345,97762.0,97761.0,0.2045715]
[1739405964949,0.00415345,97762.0,97761.0,0.2045715]
[1739405974550,5e-08,97762.0,97761.0,0.5653715]
[1739405975955,0.00015309,97771.0,97770.0,0.2045528]
[1739405976254,0.02015309,97771.0,97770.0,0.5653528]
[1739405977656,0.02015309,97771.0,97770.0,0.5774938]
[1739405983052,9e-08,97771.0,97770.0,0.5774938]
[1739405983254,0.0015346,97783.0,97782.0,0.2045275]
[1739405983454,0.2015346,97783.0,97782.0,0.2045275]
[1739405984658,0.2015346,97783.0,97782.0,0.2055275]
[1739405985458,0.2015346,97783.0,97782.0,0.2065275]
[1739405986862,0.0015346,97783.0,97782.0,0.2065275]
[1739405987263,0.0015346,97783.0,97782.0,0.2055275]
[1739405987863,0.0015346,97783.0,97782.0,0.2065275]
[1739405988867,0.2315346,97783.0,97782.0,0.002]
[1739405991074,0.23,97783.0,97782.0,0.002]
[1739405991368,0.2045438,97775.0,97773.0,0.00015345]
[1739405991571,0.4014,97774.0,97773.0,0.00015345]
[1739405991775,0.6414,97774.0,97773.0,0.00015345]
[1739405992664,0.6414,97774.0,97773.0,0.00115345]
[1739405994167,0.6424,97774.0,97773.0,0.00115345]
[1739405994566,0.6424,97774.0,97773.0,0.00015345]
[1739405994764,0.6434,97774.0,97773.0,0.00115345]
[1739405994964,0.6454,97774.0,97773.0,0.00115345]
[1739405995164,0.6951477,97774.0,97773.0,0.00115345]
[1739406001281,0.2045552,97769.0,97732.0,0.051158]
[1739406001463,0.3608,97765.0,97755.0,0.01599422]
[1739406001663,0.0399,97764.0,97762.0,0.2045691]
[1739406001863,0.2799,97764.0,97762.0,0.2045691]
[1739406003581,0.2809,97764.0,97762.0,0.2045691]
[1739406003879,0.29250205,97764.0,97763.0,0.01599436]
[1739406004578,0.29250205,97764.0,97762.0,0.2045691]
[1739406005177,0.29250205,97764.0,97763.0,0.01599436]
[1739406005479,0.29550205,97764.0,97763.0,0.01599436]
[1739406005976,0.29450205,97764.0,97763.0,0.01599436]
[1739406006279,0.29550205,97764.0,97763.0,0.01599436]
[1739406006580,0.25560205,97764.0,97763.0,0.01599436]
[1739406008180,0.244,97764.0,97763.0,0.01599436]
[1739406014274,0.244,97764.0,97763.0,0.05489436]
[1739406014683,0.244,97764.0,97763.0,0.08048434]
[1739406015479,0.244,97764.0,97763.0,0.06448998]
[1739406015679,0.004,97764.0,97763.0,0.08048169]
[1739406017686,0.004,97764.0,97763.0,0.08048133]
[1739406027587,0.024,97764.0,97763.0,0.08048133]
[1739406029688,0.023,97764.0,97763.0,0.08048133]
[1739406029885,0.00015345,97773.0,97772.0,0.2045485]
[1739406030086,0.05015345,97773.0,97772.0,0.24612983]
[1739406030287,0.05015345,97773.0,97772.0,0.24612736]
[1739406030684,0.05015345,97773.0,97772.0,0.28402736]
[1739406031083,0.183933,97784.0,97783.0,0.2045254]
[1739406031283,0.07024585,97784.0,97783.0,0.24610426]
[1739406032196,0.07024585,97784.0,97783.0,0.25763376]
[1739406032390,0.07024585,97784.0,97783.0,0.25863376]
[1739406033288,0.07,97784.0,97783.0,0.25963376]
[1739406033894,0.07,97784.0,97783.0,0.62043376]
[1739406035396,0.07,97784.0,97783.0,0.65241023]
[1739406036496,0.07,97784.0,97783.0,0.65240086]
[1739406038590,0.07,97784.0,97783.0,0.65240151]
[1739406040593,0.07,97784.0,97783.0,0.5788549]
[1739406040788,0.07,97784.0,97783.0,0.65240124]
[1739406041202,0.0392,97804.0,97803.0,0.2044837]
[1739406041392,0.0392,97804.0,97803.0,0.22047203]
[1739406042304,0.05082494,97804.0,97803.0,0.22047203]
[1739406042491,0.05082494,97804.0,97803.0,0.22247203]
[1739406047406,0.05082494,97804.0,97803.0,0.002]
[1739406048002,0.2045004,97795.0,97794.0,0.00015345]
[1739406048207,0.5908,97795.0,97783.0,0.2045245]
[1739406048393,0.07909512,97793.0,97783.0,0.2045245]
[1739406048597,0.3608,97787.0,97776.0,0.2045396]
[1739406048797,0.041,97786.0,97776.0,0.2045396]
[1739406049102,0.4555213,97786.0,97777.0,0.204536]
[1739406049306,0.3608,97778.0,97777.0,0.204536]
[1739406049608,0.5908,97778.0,97777.0,0.204536]
[1739406050708,0.5908,97778.0,97777.0,0.205536]
[1739406051003,0.5908,97778.0,97777.0,0.001]
[1739406051207,0.66448,97778.0,97777.0,0.001]
[1739406051807,0.66648,97778.0,97777.0,0.001]
[1739406053398,0.8710159,97778.0,97777.0,0.001]
[1739406053597,0.7973359,97778.0,97777.0,0.001]
[1739406054692,0.2045511,97771.0,97764.0,0.2045647]
[1739406054898,0.3608,97767.0,97766.0,0.2045611]
[1739406055097,0.5908,97767.0,97766.0,0.2045611]
[1739406056404,0.5918,97767.0,97766.0,0.2045611]
[1739406056801,0.5928,97767.0,97766.0,0.2045611]
[1739406057405,0.60412844,97767.0,97766.0,0.2045611]
[1739406057602,0.60412844,97767.0,97760.0,0.2045727]
[1739406057800,0.0412,97766.0,97761.0,0.02559064]
[1739406058002,0.2812,97766.0,97762.0,0.02559064]
[1739406058202,0.2812,97766.0,97763.0,0.02559064]
[1739406058505,0.2812,97766.0,97757.0,0.00015345]
[1739406058811,0.2812,97766.0,97758.0,0.02559065]
[1739406059009,0.2822,97766.0,97759.0,0.02559065]
[1739406059207,0.2822,97766.0,97760.0,0.02559065]
[1739406059410,0.2812,97766.0,97761.0,0.02559065]
[1739406059610,0.2852,97766.0,97764.0,0.2045649]
[1739406060011,0.2852,97766.0,97765.0,0.01599415]
[1739406060311,0.2852,97766.0,97765.0,1e-08]
[1739406060312,0.4897611,97766.0,97765.0,1e-08]
[1739406060513,0.2045778,97758.0,97757.0,0.00015345]
[1739406060810,0.8053778,97758.0,97757.0,0.00015345]
[1739406061607,0.6008,97758.0,97743.0,0.18399198]
[1739406061815,0.3608,97747.0,97743.0,0.38859988]
[1739406062007,0.11378,97746.0,97743.0,0.38859988]
[1739406062210,0.2801,97746.0,97743.0,0.2046079]
[1739406063111,0.2801,97746.0,97743.0,0.2126079]
[1739406063815,0.29143869,97746.0,97743.0,0.2156079]
[1739406064215,0.29143869,97746.0,97743.0,0.011]
[1739406064613,0.29443869,97746.0,97743.0,0.004]
[1739406065008,0.29543869,97746.0,97743.0,0.001]
[1739406066911,0.29543869,97746.0,97743.0,0.2056075]
[1739406068221,0.29543869,97746.0,97744.0,0.2046067]
[1739406069320,0.29543869,97746.0,97744.0,0.2056067]
[1739406070313,0.29543869,97746.0,97744.0,0.2066067]
[1739406071318,0.25533869,97746.0,97744.0,0.2066067]
[1739406072223,0.25533869,97746.0,97745.0,0.078]
[1739406072521,0.25533869,97746.0,97745.0,0.09399684]
[1739406073223,0.25533869,97746.0,97745.0,0.09399665]
[1739406073423,0.25533869,97746.0,97745.0,0.09499665]
[1739406073829,0.25233869,97746.0,97745.0,0.09499665]
[1739406074128,0.25533869,97746.0,97745.0,0.09599665]
[1739406074424,0.25533869,97746.0,97745.0,0.10730615]
[1739406075219,0.244,97746.0,97745.0,0.10730615]
[1739406076421,0.244,97746.0,97745.0,0.1329008]
[1739406079420,0.244,97746.0,97745.0,0.1319008]
[1739406079617,0.244,97746.0,97745.0,0.52469161]
[1739406080424,0.243,97746.0,97745.0,0.52469161]
[1739406080624,0.241,97746.0,97745.0,0.52369161]
[1739406080828,0.244,97746.0,97745.0,0.52469161]
[1739406081526,0.068714,97746.0,97745.0,0.52469161]
[1739406082027,0.004,97746.0,97745.0,0.52469161]
[1739406082227,0.004,97746.0,97745.0,0.52369161]
[1739406083734,0.3608,97758.0,97757.0,0.2045799]
[1739406083931,0.5208,97758.0,97757.0,0.27816201]
[1739406085224,0.5208,97758.0,97757.0,0.27916201]
[1739406085428,0.5238,97758.0,97757.0,0.27916201]
[1739406085839,0.5248,97758.0,97757.0,0.27916201]
[1739406087131,0.164,97758.0,97757.0,0.27916201]
[1739406087331,0.164,97758.0,97757.0,0.29052427]
[1739406089430,0.163,97758.0,97757.0,0.29052427]
[1739406089636,0.164,97758.0,97757.0,0.29052427]
[1739406089831,0.164,97758.0,97757.0,0.29050966]
[1739406090437,0.164,97758.0,97757.0,0.2905097]
[1739406091236,0.164,97758.0,97757.0,0.6513097]
[1739406092039,0.00015345,97767.0,97757.0,0.44672744]
[1739406092236,0.0315348,97766.0,97765.0,0.2045632]
[1739406092444,0.0315348,97766.0,97765.0,0.27812838]
[1739406092742,0.03,97766.0,97765.0,0.27812838]
[1739406093136,0.031,97766.0,97765.0,0.63892838]
[1739406093846,0.034,97766.0,97765.0,0.63892838]
[1739406094245,0.034,97766.0,97765.0,0.63892249]
[1739406095833,0.033,97766.0,97765.0,0.63892249]
[1739406096736,0.03,97766.0,97765.0,0.63892249]
[1739406097337,0.03,97766.0,97765.0,0.63892402]
[1739406097738,0.03,97766.0,97765.0,0.60694019]
[1739406097941,0.0712,97766.0,97765.0,0.60694019]
[1739406100142,0.0712,97766.0,97765.0,0.24614019]
[1739406102341,0.0712,97766.0,97765.0,0.04157699]
[1739406102545,0.0712,97766.0,97756.0,0.00015345]
[1739406102847,0.3608,97762.0,97757.0,0.04158454]
[1739406103048,0.5808,97762.0,97758.0,0.04158542]
[1739406103246,0.5808,97762.0,97759.0,0.04158542]
[1739406103450,0.5808,97762.0,97760.0,0.04158542]
[1739406103747,0.5808,97762.0,97761.0,0.01599439]
[1739406104541,0.5808,97762.0,97761.0,0.22056589]
[1739406104850,0.5808,97762.0,97761.0,0.2461569]
[1739406105042,0.22,97762.0,97761.0,0.2461569]
[1739406106445,0.22,97762.0,97761.0,0.2471569]
[1739406107355,0.22,97762.0,97761.0,0.24715367]
[1739406111345,0.22,97762.0,97761.0,0.2055715]
[1739406111547,0.22,97762.0,97761.0,0.24715323]
[1739406112855,0.01143395,97765.0,97764.0,0.2045652]
[1739406113056,0.0412,97766.0,97764.0,0.24614693]
[1739406113255,0.0412,97766.0,97765.0,0.04158141]
[1739406115958,0.0412,97766.0,97765.0,0.04258165]
[1739406116153,0.0412,97766.0,97765.0,0.04358165]
[1739406117157,0.0412,97766.0,97765.0,0.01799294]
[1739406117657,0.00015345,97767.0,97766.0,0.2045611]
[1739406117851,0.00015345,97767.0,97766.0,0.22055404]
[1739406118058,0.00015345,97767.0,97766.0,0.24614271]
[1739406118558,0.00015345,97767.0,97766.0,0.2574342]
[1739406118954,0.00015345,97767.0,97766.0,0.2594342]
[1739406119354,0.00015345,97767.0,97766.0,0.2584342]
[1739406119556,0.00015345,97767.0,97766.0,0.2574342]
[1739406119761,0.00015345,97767.0,97766.0,0.2584342]
[1739406122653,0.00015345,97767.0,97766.0,0.2574342]
[1739406122962,0.00015345,97767.0,97766.0,0.2584342]
[1739406123562,0.00015345,97767.0,97766.0,0.25843387]
[1739406124157,0.00015345,97767.0,97766.0,0.23284539]
[1739406125262,0.00015345,97767.0,97766.0,0.2328454]
[1739406126361,0.00015345,97767.0,97766.0,0.22155391]
[1739406127361,0.00015345,97767.0,97766.0,0.22155394]
[1739406128374,0.00015345,97767.0,97766.0,0.2055611]
[1739406130068,0.00015345,97767.0,97766.0,0.001]
[1739406130268,0.01156627,97767.0,97766.0,0.001]
[1739406136478,0.2045799,97757.0,97756.0,0.00015345]
[1739406136673,0.5908,97757.0,97756.0,0.00015345]
[1739406136970,0.5908,97757.0,97756.0,0.20473545]
[1739406137467,0.60227293,97757.0,97756.0,0.20473545]
[1739406137979,0.60227293,97757.0,97756.0,0.20573545]
[1739406138976,0.60227293,97757.0,97756.0,0.00215345]
[1739406140676,0.65202423,97757.0,97756.0,0.00215345]
[1739406143571,0.66602423,97757.0,97756.0,0.00215345]
[1739406144274,0.60227293,97757.0,97756.0,0.00115345]
[1739406144467,0.61727293,97757.0,97756.0,0.00215345]
[1739406148489,0.82185273,97757.0,97756.0,0.00215345]
[1739406149076,0.59185273,97757.0,97756.0,0.00215345]
[1739406150281,0.59185273,97757.0,97756.0,0.20673535]
[1739406151281,0.38727293,97757.0,97756.0,0.20673535]